fUSD/lending_fUSD_20240724
["ID","MTS","AMOUNT","RATE_DAILY","PERIOD"]
[333053559,1721779778872,741.73,8.219e-05,2]
[333053583,1721779833771,-250.0,9.896e-05,2]
[333053584,1721779833781,-476.45,9.905e-05,2]
[333053585,1721779833791,-334.23,9.924e-05,2]
[333053586,1721779833801,-184.46342713,9.962e-05,2]
[333053587,1721779833811,-300.0,9.999e-05,2]
[333053588,1721779833821,-25294.2604552,0.0001,2]
[333053589,1721779833831,-162.56852684,0.00010071,2]
[333053590,1721779833841,-172.51,0.00010071,2]
[333053591,1721779833850,-23890.0,0.00010081,2]
[333053592,1721779833860,-179.70031025,0.00010171,2]
[333053593,1721779833870,-1000.0,0.00010178,2]
[333053594,1721779833879,-499.99,0.00010278,2]
[333053595,1721779833889,-172.51,0.00010278,2]
[333053596,1721779833899,-150.0,0.00010287,2]
[333053597,1721779833909,-1666.5,0.00010288,2]
[333053598,1721779833919,-164.92,0.00010349,2]
[333053599,1721779833929,-741.73,0.00010478,2]
[333053600,1721779833939,-172.51,0.00010764,2]
[333053601,1721779833949,-1598.4445,0.00010774,2]
[333053602,1721779833958,-960.549,0.0001083,2]
[333053603,1721779833967,-509.671,0.0001083,2]
[333053604,1721779833977,-152.16019048,0.00010855,2]
[333053605,1721779833986,-172.51,0.00010862,2]
[333053606,1721779833997,-1208.1105,0.00010872,2]
[333053607,1721779834006,-460.6,0.00010958,2]
[333053608,1721779834015,-172.51,0.0001099,2]
[333053609,1721779834024,-172.51,0.00010995,2]
[333053610,1721779834034,-420.0,0.00010999,2]
[333053611,1721779834043,-276.69675869,0.00011,2]
[333053612,1721779834054,-281.45287903,0.00011,2]
[333053613,1721779834063,-1250.0,0.00011,2]
[333053614,1721779834072,-5540.4322,0.00011005,2]
[333053615,1721779834082,-162.56852684,0.00011005,2]
[333053616,1721779834092,-153.78556044,0.00011053,2]
[333053617,1721779834106,-172.51,0.00011077,2]
[333053618,1721779834115,-170.948,0.00011087,2]
[333053619,1721779834125,-247.019,0.00011087,2]
[333053620,1721779834134,-150.089,0.00011087,2]
[333053621,1721779834145,-172.51,0.00011095,2]
[333053622,1721779834156,-172.51,0.00011095,2]
[333053623,1721779834166,-172.51,0.00011095,2]
[333053624,1721779834176,-172.51,0.00011095,2]
[333053625,1721779834188,-172.51,0.00011095,2]
[333053626,1721779834198,-172.51,0.00011095,2]
[333053627,1721779834208,-172.51,0.00011095,2]
[333053628,1721779834218,-172.51,0.00011095,2]
[333053629,1721779834228,-172.51,0.00011095,2]
[333053630,1721779834238,-172.51,0.00011095,2]
[333053631,1721779834248,-172.51,0.00011095,2]
[333053632,1721779834258,-172.51,0.00011095,2]
[333053633,1721779834268,-172.51,0.00011095,2]
[333053634,1721779834278,-172.51,0.00011095,2]
[333053635,1721779834289,-172.51,0.00011095,2]
[333053636,1721779834298,-172.51,0.00011095,2]
[333053637,1721779834309,-172.51,0.00011095,2]
[333053638,1721779834319,-172.51,0.00011095,2]
[333053639,1721779834329,-172.51,0.00011095,2]
[333053640,1721779834339,-172.51,0.00011095,2]
[333053641,1721779834349,-172.51,0.00011095,2]
[333053642,1721779834359,-172.51,0.00011095,2]
[333053643,1721779834369,-172.51,0.00011095,2]
[333053644,1721779834379,-172.51,0.00011095,2]
[333053645,1721779834388,-172.51,0.00011095,2]
[333053646,1721779834398,-172.51,0.00011095,2]
[333053647,1721779834409,-172.51,0.00011095,2]
[333053648,1721779834420,-172.51,0.00011095,2]
[333053649,1721779834430,-172.51,0.00011095,2]
[333053650,1721779834440,-172.51,0.00011095,2]
[333053651,1721779834450,-172.51,0.00011095,2]
[333053652,1721779834460,-172.51,0.00011095,2]
[333053653,1721779834470,-172.51,0.00011095,2]
[333053654,1721779834480,-172.51,0.00011095,2]
[333053655,1721779834490,-172.51,0.00011095,2]
[333053656,1721779834500,-172.51,0.00011095,2]
[333053657,1721779834510,-172.51,0.00011095,2]
[333053658,1721779834520,-172.51,0.00011095,2]
[333053659,1721779834530,-155.89445676,0.00011105,2]
[333053660,1721779834539,-300.96446971,0.00011105,2]
[333053661,1721779834549,-158.04492712,0.00011105,2]
[333053662,1721779834559,-28091.26787554,0.00011105,2]
[333053663,1721779834569,-155.82064845,0.00011105,2]
[333053664,1721779834578,-15465.42611923,0.00011105,2]
[333053665,1721779834588,-10530.80114964,0.00011105,2]
[333053666,1721779834597,-264.17202459,0.00011105,2]
[333053667,1721779834607,-5397.51614816,0.00011105,2]
[333053668,1721779834617,-692.60496755,0.00011105,2]
[333053669,1721779834627,-9259.73193231,0.00011105,2]
[333053670,1721779834637,-22632.54477607,0.00011105,2]
[333053671,1721779834647,-5320.70599634,0.00011105,2]
[333053672,1721779834657,-214.22437364,0.00011105,2]
[333053673,1721779834667,-1380.31071233,0.00011105,2]
[333053674,1721779834677,-4798.77870201,0.00011105,2]
[333053675,1721779834687,-3400.41607014,0.00011105,2]
[333053676,1721779834697,-3117.1338451,0.00011105,2]
[333053677,1721779834707,-2379.12605002,0.00011105,2]
[333053678,1721779834716,-2271.98969487,0.00011105,2]
[333053679,1721779834726,-267.02011989,0.00011105,2]
[333053680,1721779834736,-4471.6772674,0.00011105,2]
[333053681,1721779834745,-600.01830648,0.00011105,2]
[333053682,1721779834755,-1073.43313822,0.00011105,2]
[333053683,1721779834765,-155.0,0.00011105,2]
[333053684,1721779834775,-308.92570117,0.00011105,2]
[333053685,1721779834785,-652.83975331,0.00011105,2]
[333053686,1721779834795,-722.57761402,0.00011105,2]
[333053687,1721779834804,-528.31525612,0.00011105,2]
[333053688,1721779834814,-155.0,0.00011105,2]
[333053689,1721779834824,-236.06369741,0.00011105,2]
[333053690,1721779834834,-158.81532317,0.00011105,2]
[333053691,1721779834845,-1049.36044464,0.00011105,2]
[333053692,1721779834854,-329.58624283,0.00011105,2]
[333053693,1721779834864,-2206.59920799,0.00011105,2]
[333053694,1721779834874,-164.18426229,0.00011105,2]
[333053695,1721779834884,-298.29388542,0.00011105,2]
[333053696,1721779834894,-1137.7534592,0.00011105,2]
[333053697,1721779834905,-164.20932058,0.00011105,2]
[333053698,1721779834915,-3066.70512637,0.00011105,2]
[333053699,1721779834924,-155.0,0.00011105,2]
[333053700,1721779834934,-155.0,0.00011105,2]
[333053701,1721779834943,-19668.04883904,0.00011105,2]
[333053702,1721779834953,-218.65328672,0.00011105,2]
[333053703,1721779834963,-185.875,0.00011158,2]
[333053704,1721779834973,-260.608,0.00011158,2]
[333053705,1721779834983,-261.248,0.00011158,2]
[333053706,1721779834992,-193.595,0.00011158,2]
[333053707,1721779835002,-203.465,0.00011158,2]
[333053708,1721779835012,-169.593,0.00011158,2]
[333053709,1721779835022,-1254.0,0.00011158,2]
[333053710,1721779835032,-362.0,0.00011158,2]
[333053711,1721779835042,-1829.0,0.00011158,2]
[333053712,1721779835051,-1663.0,0.00011158,2]
[333053713,1721779835061,-450.0,0.00011158,2]
[333053714,1721779835070,-621.0,0.00011158,2]
[333053715,1721779835079,-445.0,0.00011158,2]
[333053716,1721779835089,-810.0,0.00011158,2]
[333053717,1721779835099,-2382.0,0.00011158,2]
[333053718,1721779835117,-550.0,0.00011158,2]
[333053719,1721779835127,-150.0,0.00011158,2]
[333053720,1721779835136,-150.0,0.00011158,2]
[333053721,1721779835146,-1994.0,0.00011158,2]
[333053722,1721779835157,-3283.0,0.00011158,2]
[333053723,1721779835167,-539.24588103,0.00011161,2]
[333053724,1721779835178,-539.24588103,0.00011161,2]
[333053725,1721779835187,-155.0,0.00011161,2]
[333053726,1721779835198,-357.01695236,0.00011186,2]
[333053727,1721779835208,-155.0,0.00011186,2]
[333053728,1721779835218,-439.57805419,0.00011206,2]
[333053729,1721779835227,-155.82280122,0.00011206,2]
[333053730,1721779835237,-150.0,0.00011306,2]
[333053731,1721779835246,-205.57122708,0.00011322,2]
[333053732,1721779835256,-205.57122708,0.00011322,2]
[333053733,1721779835265,-1274.07752691,0.00011322,2]
[333053734,1721779835275,-1317.11211351,0.00011324,2]
[333053735,1721779835284,-365.20312364,0.00011324,2]
[333053736,1721779835293,-1500.0,0.00011324,2]
[333053737,1721779835302,-365.20312364,0.00011324,2]
[333053738,1721779835312,-203.17152502,0.00011324,2]
[333053739,1721779835321,-203.17152502,0.00011384,2]
[333053740,1721779835331,-155.0,0.00011384,2]
[333053741,1721779835341,-959.08617395,0.00011384,2]
[333053742,1721779835351,-155.0,0.00011384,2]
[333053743,1721779835360,-1000.0,0.0001145,2]
[333053744,1721779835369,-500.0,0.00011451,2]
[333053745,1721779835379,-2000.0,0.000115,2]
[333053746,1721779835389,-2000.0,0.000115,2]
[333053747,1721779835400,-500.0,0.00011524,2]
[333053748,1721779835410,-155.0,0.00011525,2]
[333053749,1721779835419,-242.96573529,0.00011525,2]
[333053750,1721779835432,-242.96573529,0.00011525,2]
[333053751,1721779835442,-484.62726921,0.00011525,2]
[333053752,1721779835451,-196.89824652,0.00011525,2]
[333053753,1721779835461,-500.0,0.0001165,2]
[333053754,1721779835470,-154.90969968,0.0001178,2]
[333053755,1721779835480,-1000.0,0.000118,2]
[333053756,1721779835489,-7500.0,0.000118,2]
[333053757,1721779835499,-164.56359998,0.000118,2]
[333053758,1721779835509,-318.19433508,0.000118,2]
[333053759,1721779835518,-186.50337047,0.000118,2]
[333053760,1721779835528,-500.0,0.00011812,2]
[333053761,1721779835538,-1025.89,0.00011812,2]
[333053762,1721779835547,-500.0,0.00011812,2]
[333053763,1721779835557,-500.0,0.00011812,2]
[333053764,1721779835566,-500.0,0.00011812,2]
[333053765,1721779835575,-500.0,0.00011812,2]
[333053766,1721779835585,-500.0,0.00011812,2]
[333053767,1721779835594,-547.44,0.00011812,2]
[333053768,1721779835603,-5800.0,0.00011813,2]
[333053769,1721779835613,-5800.0,0.00011822,2]
[333053770,1721779835623,-5800.0,0.00011831,2]
[333053771,1721779835633,-163.30825189,0.00011834,2]
[333053772,1721779835643,-5800.0,0.00011839,2]
[333053773,1721779835656,-155.0,0.0001185,2]
[333053774,1721779835666,-1296.72947417,0.0001185,2]
[333053775,1721779835676,-155.0,0.0001185,2]
[333053776,1721779835686,-155.0,0.0001185,2]
[333053777,1721779835695,-155.0,0.0001185,2]
[333053778,1721779835705,-367.42834681,0.0001185,2]
[333053779,1721779835714,-150.773508,0.0001187,2]
[333053780,1721779835723,-367.42834681,0.00011896,2]
[333053781,1721779835733,-159.41834752,0.00011896,2]
[333053782,1721779835742,-500.0,0.00011898,2]
[333053783,1721779835752,-500.0,0.00011898,2]
[333053784,1721779835762,-623.89,0.00011898,2]
[333053785,1721779835770,-500.0,0.00011898,2]
[333053786,1721779835780,-631.57,0.00011898,2]
[333053787,1721779835790,-500.0,0.00011898,2]
[333053788,1721779835800,-500.0,0.00011898,2]
[333053789,1721779835809,-5941.19285388,0.00011899,2]
[333053790,1721779835818,-343.2259855,0.00011899,2]
[333053791,1721779835828,-344.64,0.00011899,2]
[333053792,1721779835837,-889.3032736,0.00011899,2]
[333053793,1721779835847,-500.0,0.00011899,2]
[333053794,1721779835857,-492.43,0.00011899,2]
[333053795,1721779835866,-500.0,0.00011899,2]
[333053796,1721779835876,-500.0,0.00011899,2]
[333053797,1721779835885,-500.0,0.00011899,2]
[333053798,1721779835894,-500.0,0.00011899,2]
[333053799,1721779835908,-500.0,0.00011899,2]
[333053800,1721779835917,-500.0,0.00011899,2]
[333053801,1721779835926,-500.0,0.00011899,2]
[333053802,1721779835935,-500.0,0.00011899,2]
[333053803,1721779835945,-500.0,0.00011899,2]
[333053804,1721779835954,-500.0,0.00011899,2]
[333053805,1721779835963,-500.0,0.00011899,2]
[333053806,1721779835974,-500.0,0.00011899,2]
[333053807,1721779835984,-500.0,0.00011899,2]
[333053808,1721779835994,-500.0,0.00011899,2]
[333053809,1721779836004,-500.0,0.00011899,2]
[333053810,1721779836013,-500.0,0.00011899,2]
[333053811,1721779836023,-500.0,0.00011899,2]
[333053812,1721779836034,-500.0,0.00011899,2]
[333053813,1721779836044,-500.0,0.00011899,2]
[333053814,1721779836054,-500.0,0.00011899,2]
[333053815,1721779836065,-500.0,0.00011899,2]
[333053816,1721779836074,-500.0,0.00011899,2]
[333053817,1721779836083,-379.42609482,0.00011899,2]
[333053818,1721779836094,-1025.89,0.00011899,2]
[333053819,1721779836105,-1025.89,0.00011899,2]
[333053820,1721779836115,-1025.89,0.00011899,2]
[333053821,1721779836124,-1025.89,0.00011899,2]
[333053822,1721779836133,-1025.89,0.00011899,2]
[333053823,1721779836143,-1025.89,0.00011899,2]
[333053824,1721779836153,-1025.89,0.00011899,2]
[333053825,1721779836163,-1025.89,0.00011899,2]
[333053826,1721779836173,-1025.89,0.00011899,2]
[333053827,1721779836184,-1025.89,0.00011899,2]
[333053828,1721779836194,-1025.89,0.00011899,2]
[333053829,1721779836204,-1025.89,0.00011899,2]
[333053830,1721779836213,-1025.89,0.00011899,2]
[333053831,1721779836223,-1025.89,0.00011899,2]
[333053832,1721779836232,-1025.89,0.00011899,2]
[333053833,1721779836242,-1025.89,0.00011899,2]
[333053834,1721779836252,-1025.89,0.00011899,2]
[333053835,1721779836261,-1025.89,0.00011899,2]
[333053836,1721779836271,-1025.89,0.00011899,2]
[333053837,1721779836281,-1025.89,0.00011899,2]
[333053838,1721779836290,-1025.89,0.00011899,2]
[333053839,1721779836299,-1025.89,0.00011899,2]
[333053840,1721779836309,-1025.97,0.00011899,2]
[333053841,1721779836319,-500.0,0.00011899,2]
[333053842,1721779836329,-500.0,0.00011899,2]
[333053843,1721779836339,-546.41228909,0.00011899,2]
[333053844,1721779836349,-377.81,0.00011899,2]
[333053845,1721779836358,-500.0,0.00011899,2]
[333053846,1721779836368,-500.0,0.00011899,2]
[333053847,1721779836377,-500.0,0.00011899,2]
[333053848,1721779836387,-500.0,0.00011899,2]
[333053849,1721779836397,-293.64,0.00011899,2]
[333053850,1721779836409,-31689.4961392,0.00011899,2]
[333053851,1721779836419,-3946.2958001,0.00011899,2]
[333053852,1721779836428,-500.0,0.00011899,2]
[333053853,1721779836438,-500.0,0.00011899,2]
[333053854,1721779836447,-223.99,0.00011899,2]
[333053855,1721779836457,-500.0,0.00011899,2]
[333053856,1721779836466,-500.0,0.00011899,2]
[333053857,1721779836476,-500.0,0.00011899,2]
[333053858,1721779836485,-500.0,0.00011899,2]
[333053859,1721779836495,-500.0,0.00011899,2]
[333053860,1721779836504,-500.0,0.00011899,2]
[333053861,1721779836513,-500.0,0.00011899,2]
[333053862,1721779836523,-427.55,0.00011899,2]
[333053863,1721779836532,-500.0,0.00011899,2]
[333053864,1721779836542,-608.3,0.00011899,2]
[333053865,1721779836551,-500.0,0.00011899,2]
[333053866,1721779836560,-500.0,0.00011899,2]
[333053867,1721779836570,-500.0,0.00011899,2]
[333053868,1721779836579,-500.0,0.00011899,2]
[333053869,1721779836588,-500.0,0.00011899,2]
[333053870,1721779836598,-500.0,0.00011899,2]
[333053871,1721779836607,-500.0,0.00011899,2]
[333053872,1721779836616,-500.0,0.00011899,2]
[333053873,1721779836627,-500.0,0.00011899,2]
[333053874,1721779836637,-500.0,0.00011899,2]
[333053875,1721779836647,-399.84,0.00011899,2]
[333053876,1721779836658,-513605.78012178,0.000119,2]
[333053877,1721779836691,-882.33461522,0.000119,2]
[333053878,1721779836703,-735.06296937,0.000119,2]
[333053879,1721779836734,-172.51,0.00011095,2]
[333053880,1721779836743,-143.98048467,0.000119,2]
[333053881,1721779836769,-1467221.15218859,0.000119,2]
[333053882,1721779836809,-1500.0,0.000119,2]
[333053891,1721779838296,-172.51,0.00011095,2]
[333053892,1721779838307,-92.24427563,0.00011095,2]
[333053893,1721779838348,-80.26572437,0.00011095,2]
[333053894,1721779838359,-172.51,0.00011095,2]
[333053895,1721779838370,-172.51,0.00011095,2]
[333053896,1721779838381,-6252.76094846,0.000119,2]
[333053897,1721779838453,-456.60486029,0.000119,2]
[333053899,1721779840285,-155.0,0.00011525,2]
[333053900,1721779840295,-184.86,0.000119,2]
[333053901,1721779840307,-1416.590175,0.000119,2]
[333053902,1721779840318,-1146.80056203,0.000119,2]
[333053903,1721779840339,-523.35523712,0.000119,2]
[333053905,1721779843270,-155.0,0.00011186,2]
[333053906,1721779843281,-155.0,0.00011384,2]
[333053907,1721779843290,-1296.72947417,0.00011525,2]
[333053908,1721779843301,-159.41834752,0.0001185,2]
[333053909,1721779843313,-2679.0895877,0.000119,2]
[333053910,1721779843333,-19465.77751501,0.000119,2]
[333053911,1721779843432,-565.99524606,0.000119,2]
[333053912,1721779843444,-5991.99303999,0.000119,2]
[333053913,1721779843487,-668.90836217,0.000119,2]
[333053914,1721779843499,-450.0,0.000119,2]
[333053915,1721779843542,-485.29999995,0.000119,2]
[333053916,1721779843553,-9167.33825078,0.000119,2]
[333053917,1721779843597,-520.72464615,0.00011105,2]
[333053918,1721779843609,-605.70812265,0.00011105,2]
[333053919,1721779843620,-4764.93908232,0.00011105,2]
[333053920,1721779843632,-499.95126735,0.00011105,2]
[333053921,1721779843644,-3145.92623713,0.00011105,2]
[333053926,1721779846333,-547.44,0.00011105,2]
[333053927,1721779846388,-6238.816,0.00011105,2]
[333053928,1721779846782,-1904.96994,0.00011105,2]
[333053929,1721779846794,-1439.57354344,0.00011105,2]
[333053930,1721779846804,-539.24588103,0.00011105,2]
[333053931,1721779846813,-155.0,0.00011525,2]
[333053932,1721779846823,-155.0,0.000118,2]
[333053933,1721779846833,-432065.64128895,0.000119,2]
[333053934,1721779846845,-3902.10454446,0.000119,2]
[333053935,1721779846856,-334.765,0.000119,2]
[333053936,1721779846868,-662.03373499,0.000119,2]
[333053952,1721780351061,698.62,8.446e-05,2]
[333053956,1721780719854,3150.843682,9e-05,2]
[333053957,1721780730732,150.0,0.00015382,120]
[333053958,1721780756004,150.0,6.94e-05,2]
[333053959,1721780798309,947.25112385,8.412e-05,2]
[333053960,1721780815060,2539.60460178,9e-05,2]
[333053961,1721780815081,1313.92533768,9e-05,2]
[333054045,1721780847294,947.25112385,8.412e-05,2]
[333054067,1721780973609,663.68,8.219e-05,2]
[333054076,1721781031339,-200.0,9.968e-05,2]
[333054077,1721781031348,-215.98592689,0.00010029,2]
[333054078,1721781031402,-601.01407311,0.00010029,2]
[333054079,1721781031411,-924.31913556,0.0001003,2]
[333054080,1721781031423,-2246.84086444,0.0001003,2]
[333054081,1721781031432,-1842.22,0.00010038,2]
[333054082,1721781031441,-204.19,0.00010072,2]
[333054083,1721781031451,-2799.49,0.00010076,2]
[333054084,1721781031460,-250.0,0.00010119,2]
[333054085,1721781031469,-357.01695236,0.00010237,2]
[333054086,1721781031479,-154.90969968,0.00010294,2]
[333054087,1721781031488,-600.0,0.00010295,2]
[333054088,1721781031498,-995.09,0.00010361,2]
[333054089,1721781031510,-663.68,0.00010466,2]
[333054090,1721781031520,-620.76,0.00010575,2]
[333054091,1721781031529,-499.99,0.0001071,2]
[333054092,1721781031539,-895.0,0.00010781,2]
[333054093,1721781031548,-947.25112385,0.00010909,2]
[333054094,1721781031558,-302.51601822,0.00010952,2]
[333054095,1721781031567,-150.0,0.0001099,2]
[333054096,1721781031577,-1826.86943,0.00010991,2]
[333054097,1721781031586,-8274.108725,0.00010991,2]
[333054098,1721781031596,-192.155264,0.00010991,2]
[333054099,1721781031605,-64.22621869,0.00010991,2]
[333054100,1721781031626,-101.34485131,0.00010991,2]
[333054101,1721781031635,-205.545846,0.00010991,2]
[333054102,1721781031645,-637.59774402,0.00010991,2]
[333054103,1721781031656,-447.64794776,0.00010991,2]
[333054104,1721781031668,-349.37002855,0.00010991,2]
[333054105,1721781031679,-298.62086198,0.00010991,2]
[333054106,1721781031698,-3637.04305569,0.00010991,2]
[333054107,1721781031708,-1026.88761414,0.00010997,2]
[333054108,1721781031717,-546.90130199,0.00010999,2]
[333054109,1721781031727,-6429.18227456,0.00011,2]
[333054110,1721781031739,-1202.46363093,0.00011,2]
[333054111,1721781031751,-267853.00335888,0.00011,2]
[333054112,1721781031762,-5151.0,0.00011,2]
[333054113,1721781031773,-5530.51723118,0.00011,2]
[333054114,1721781031785,-12103.54313367,0.00011,2]
[333054115,1721781031796,-15172.74012317,0.00011,2]
[333054128,1721781037413,-7300.96841117,0.00011,2]
[333054133,1721781037479,-2975.5,0.00011,2]
[333054134,1721781037491,-500.0,0.00011,2]
[333054135,1721781037541,-1085.8962,0.00011,2]
[333054136,1721781037555,-2285.26223774,0.00011,2]
[333054137,1721781037567,-1000.00000014,0.00011,2]
[333054138,1721781037579,-4165.62792523,0.00011,2]
[333054139,1721781037617,-743.53478048,0.00011,2]
[333054140,1721781037679,-1936.04088029,0.00011,2]
[333054141,1721781037692,-446.9083603,0.00011,2]
[333054142,1721781037703,-1611.42017081,0.00011,2]
[333054143,1721781037738,-618.95206319,0.00011,2]
[333054144,1721781037750,-36254.79713045,0.00011,2]
[333054145,1721781037762,-1590.1,0.00011,2]
[333054203,1721781039525,-637.17304018,0.00011,2]
[333054205,1721781039536,-368.04046622,0.00011,2]
[333054208,1721781039548,-169275.3581515,0.00011,2]
[333054210,1721781039559,-4780.76030792,0.00011,2]
[333054213,1721781039582,-288.73129408,0.00011,2]
[333054215,1721781039593,-571.61863789,0.00011,2]
[333054221,1721781039641,-3304.77660869,0.00011,2]
[333054223,1721781039652,-2109.97814077,0.00011,2]
[333054226,1721781039663,-5441.758176,0.00011,2]
[333054228,1721781039675,-1156.2,0.00011,2]
[333054231,1721781039700,-517.0,0.00011,2]
[333054234,1721781039711,-275838.83320447,0.00011,2]
[333054236,1721781039721,-455.28848318,0.00011,2]
[333054238,1721781039732,-9643.92039372,0.00011,2]
[333054242,1721781039763,-8263.86627251,0.00011,2]
[333054244,1721781039775,-4609.19369259,0.00011,2]
[333054246,1721781039786,-26984.00164395,0.00011,2]
[333054249,1721781039797,-473.28023069,0.00011,2]
[333054251,1721781039808,-1917.30000001,0.00011,2]
[333054487,1721781042427,-160.0513,9.938e-05,2]
[333054489,1721781042437,-252.1240019,0.00011,2]
[333054492,1721781042449,-520.01920107,0.00011,2]
[333054502,1721781042539,-2340.0,0.00011,2]
[333054509,1721781042601,-1211.00213444,0.00011,2]
[333054512,1721781042713,-515.811067,0.00011,2]
[333054513,1721781042724,-475.33246739,0.00011,2]
[333054514,1721781042735,-499.44131326,0.00011,2]
[333054515,1721781042747,-772.1299993,0.00011,2]
[333054516,1721781042757,-716.30002,0.00011,2]
[333054784,1721781045578,-268.25,0.00011,2]
[333054791,1721781045644,-993.795,0.00011,2]
[333054802,1721781045755,-398920.76504178,0.00011,2]
[333054814,1721781045872,-7322.1963555,0.00011,2]
[333055660,1721781271537,150.0,0.0001621,120]
[333055663,1721781513706,597.31,8.267e-05,2]
[333055665,1721781871371,150.0,0.00015279,120]
[333055890,1721782170706,150.0,0.00014572,120]
[333055918,1721782231568,-159.63083379,9.655e-05,2]
[333055919,1721782231578,-155.0,0.0001,2]
[333055920,1721782231587,-84.49579499,0.0001,2]
[333055921,1721782231598,-118.94426934,0.0001,2]
[333055922,1721782231609,-435.662197,0.00010092,2]
[333055923,1721782231618,-250.0,0.00010133,2]
[333055924,1721782231627,-520.0,0.00010137,2]
[333055925,1721782231640,-480.0,0.00010143,2]
[333055926,1721782231649,-995.38353366,0.00010146,2]
[333055927,1721782231660,-4308.12776634,0.00010146,2]
[333055928,1721782231670,-150.0,0.00010466,2]
[333055929,1721782231679,-300.0,0.00010499,2]
[333055930,1721782231688,-165.31,0.000105,2]
[333055931,1721782231698,-150.0,0.000105,2]
[333055932,1721782231707,-150.0,0.000105,2]
[333055933,1721782231716,-529.91,0.000105,2]
[333055934,1721782231726,-150.0,0.000105,2]
[333055935,1721782231735,-597.31,0.00010531,2]
[333055936,1721782231745,-269.0,0.00010567,2]
[333055937,1721782231754,-150.0,0.00010599,2]
[333055938,1721782231763,-537.38,0.000106,2]
[333055939,1721782231772,-150.0,0.000106,2]
[333055940,1721782231781,-150.0,0.000106,2]
[333055941,1721782231791,-355.69,0.000106,2]
[333055942,1721782231800,-165.31,0.000106,2]
[333055943,1721782231810,-300.0,0.000106,2]
[333055944,1721782231819,-355.69,0.000106,2]
[333055946,1721782231828,-529.91,0.000106,2]
[333055948,1721782231838,-150.0,0.000106,2]
[333055950,1721782231848,-150.0,0.000106,2]
[333055952,1721782231860,-150.0,0.000106,2]
[333055954,1721782231869,-165.31,0.000106,2]
[333055956,1721782231879,-529.91,0.000106,2]
[333055958,1721782231889,-150.0,0.000106,2]
[333055960,1721782231898,-150.0,0.000106,2]
[333055962,1721782231908,-150.0,0.000106,2]
[333055963,1721782231925,-165.07,0.000106,2]
[333055964,1721782231934,-529.91,0.000106,2]
[333055965,1721782231943,-150.0,0.000106,2]
[333055966,1721782231953,-150.0,0.000106,2]
[333055967,1721782231964,-150.0,0.000106,2]
[333055968,1721782231974,-529.91,0.000106,2]
[333055969,1721782231983,-150.0,0.000106,2]
[333055970,1721782231993,-300.0,0.000106,2]
[333055971,1721782232002,-475.24078316,0.000106,2]
[333055972,1721782232023,-54.66921684,0.000106,2]
[333055973,1721782232032,-279.83825578,0.000106,2]
[333055974,1721782232056,-250.07174422,0.000106,2]
[333055975,1721782232066,-59.6813858,0.000106,2]
[333055976,1721782232077,-470.2286142,0.000106,2]
[333055977,1721782232087,-224.97,0.000106,2]
[333055978,1721782232096,-300.0,0.000106,2]
[333055979,1721782232106,-304.28,0.000106,2]
[333055980,1721782232119,-895.20781516,0.0001089,2]
[333055981,1721782232129,-302.71905741,0.0001089,2]
[333055982,1721782232140,-1518.72598259,0.0001089,2]
[333055983,1721782232149,-1000.0,0.00010899,2]
[333055984,1721782232159,-278.7451,0.000109,2]
[333055985,1721782232168,-1873.11032108,0.000109,2]